[Event "Titled Tuesday Blitz August 15 Late 2023"]
[White "Fiorito, Joaquin"]
[Black "UgarteCesar"]
[WhiteFideId "180173"]
[WhiteElo "2660"]
[BlackElo "2328"]
[Result "1-0"]
[Round "5"]
[TimeControl "180+1"]
[Date "2023.08.15"]
[WhiteClock "0:01:24"]
[BlackClock "0:00:00"]
[Board "121"]

1. d4 {[%clk 0:03:00]}  d5 {[%clk 0:02:59]} 2. c4 {[%clk 0:03:00]}  e6 {[%clk 0:02:59]} 3. Nc3 {[%clk 0:03:00]}  h6 {[%clk 0:02:59]} 4. cxd5 {[%clk 0:02:59]}  exd5 {[%clk 0:03:00]} 5. Nf3 {[%clk 0:02:59]}  c6 {[%clk 0:03:01]} 6. Bf4 {[%clk 0:03:00]}  Bd6 {[%clk 0:03:01]} 7. Bxd6 {[%clk 0:03:00]}  Qxd6 {[%clk 0:03:02]} 8. e3 {[%clk 0:03:01]}  Nf6 {[%clk 0:03:02]} 9. Bd3 {[%clk 0:03:00]}  O-O {[%clk 0:03:02]} 10. O-O {[%clk 0:03:00]}  Bg4 {[%clk 0:03:02]} 11. Qb3 {[%clk 0:02:59]}  Bxf3 {[%clk 0:03:02]} 12. gxf3 {[%clk 0:02:58]}  b5 {[%clk 0:02:59]} 13. Kh1 {[%clk 0:02:58]}  Nbd7 {[%clk 0:02:53]} 14. Rg1 {[%clk 0:02:57]}  Nb6 {[%clk 0:02:52]} 15. Rg2 {[%clk 0:02:54]}  Rfd8 {[%clk 0:02:38]} 16. Rag1 {[%clk 0:02:53]}  Ne8 {[%clk 0:02:38]} 17. Qd1 {[%clk 0:02:50]}  Nc4 {[%clk 0:02:37]} 18. Bb1 {[%clk 0:02:46]}  Kf8 {[%clk 0:02:20]} 19. b3 {[%clk 0:02:43]}  Nb6 {[%clk 0:02:11]} 20. Qd3 {[%clk 0:02:42]}  Nd7 {[%clk 0:02:10]} 21. f4 {[%clk 0:02:26]}  a5 {[%clk 0:02:08]} 22. Ne2 {[%clk 0:02:20]}  a4 {[%clk 0:02:07]} 23. Ng3 {[%clk 0:02:20]}  g6 {[%clk 0:01:48]} 24. f5 {[%clk 0:02:18]}  g5 {[%clk 0:01:48]} 25. Nh5 {[%clk 0:02:14]}  axb3 {[%clk 0:01:38]} 26. axb3 {[%clk 0:02:14]}  Ndf6 {[%clk 0:01:32]} 27. Qe2 {[%clk 0:02:13]}  Ra1 {[%clk 0:01:17]} 28. h4 {[%clk 0:02:08]}  g4 {[%clk 0:01:13]} 29. Nf4 {[%clk 0:02:03]}  h5 {[%clk 0:01:12]} 30. f3 {[%clk 0:02:03]}  Rda8 {[%clk 0:01:10]} 31. fxg4 {[%clk 0:02:03]}  Nxg4 {[%clk 0:01:09]} 32. Nxh5 {[%clk 0:01:59]}  Nef6 {[%clk 0:01:00]} 33. Rxg4 {[%clk 0:01:52]}  R8a2 {[%clk 0:00:44]} 34. Bxa2 {[%clk 0:01:42]}  Nxg4 {[%clk 0:00:42]} 35. Rxa1 {[%clk 0:01:36]}  Nh6 {[%clk 0:00:18]} 36. Rg1 {[%clk 0:01:34]}  Qe7 {[%clk 0:00:12]} 37. Qf2 {[%clk 0:01:33]}  Qe4+ {[%clk 0:00:11]} 38. Rg2 {[%clk 0:01:25]}  Ng4 {[%clk 0:00:00]} 39. Qf4 {[%clk 0:01:24]} 1-0


[Site "https://www.chess.com"]

[Event "Titled Tuesday Blitz August 15 Late 2023"]
[White "Stachanczyk, Jacek"]
[Black "Gamayev, Oleg"]
[WhiteFideId "1116657"]
[BlackFideId "2802813"]
[WhiteElo "2325"]
[BlackElo "2570"]
[Result "1-0"]
[Round "5"]
[TimeControl "180+1"]
[Date "2023.08.15"]
[WhiteClock "0:01:14"]
[BlackClock "0:01:51"]
[Board "123"]

1. e4 {[%clk 0:02:53]}  d6 {[%clk 0:03:00]} 2. d4 {[%clk 0:02:52]}  Nf6 {[%clk 0:02:57]} 3. Nc3 {[%clk 0:02:52]}  e5 {[%clk 0:02:58]} 4. dxe5 {[%clk 0:02:49]}  dxe5 {[%clk 0:02:59]} 5. Qxd8+ {[%clk 0:02:49]}  Kxd8 {[%clk 0:03:00]} 6. Bg5 {[%clk 0:02:49]}  Be7 {[%clk 0:03:00]} 7. O-O-O+ {[%clk 0:02:49]}  Nfd7 {[%clk 0:03:01]} 8. Bxe7+ {[%clk 0:02:44]}  Kxe7 {[%clk 0:03:02]} 9. Bc4 {[%clk 0:02:31]}  c6 {[%clk 0:03:01]} 10. Nf3 {[%clk 0:02:32]}  f6 {[%clk 0:03:01]} 11. Ne2 {[%clk 0:02:25]}  Nb6 {[%clk 0:03:01]} 12. Bb3 {[%clk 0:02:24]}  a5 {[%clk 0:03:01]} 13. a3 {[%clk 0:02:20]}  N8d7 {[%clk 0:03:02]} 14. Ng3 {[%clk 0:02:16]}  Nc5 {[%clk 0:03:02]} 15. Ba2 {[%clk 0:02:16]}  Bd7 {[%clk 0:03:01]} 16. Nd2 {[%clk 0:02:04]}  Rhd8 {[%clk 0:02:59]} 17. Nc4 {[%clk 0:02:02]}  Nxc4 {[%clk 0:02:58]} 18. Bxc4 {[%clk 0:02:03]}  b5 {[%clk 0:02:56]} 19. Ba2 {[%clk 0:02:03]}  Rf8 {[%clk 0:02:47]} 20. Rd2 {[%clk 0:01:59]}  Rad8 {[%clk 0:02:46]} 21. Rhd1 {[%clk 0:01:58]}  g6 {[%clk 0:02:44]} 22. f3 {[%clk 0:01:56]}  Bc8 {[%clk 0:02:44]} 23. Rxd8 {[%clk 0:01:50]}  Rxd8 {[%clk 0:02:43]} 24. Rxd8 {[%clk 0:01:51]}  Kxd8 {[%clk 0:02:44]} 25. Kd2 {[%clk 0:01:49]}  Ke7 {[%clk 0:02:43]} 26. Nf1 {[%clk 0:01:48]}  Nb7 {[%clk 0:02:41]} 27. Ne3 {[%clk 0:01:48]}  Nd6 {[%clk 0:02:41]} 28. c4 {[%clk 0:01:47]}  b4 {[%clk 0:02:34]} 29. axb4 {[%clk 0:01:47]}  axb4 {[%clk 0:02:35]} 30. Kc2 {[%clk 0:01:42]}  Be6 {[%clk 0:02:26]} 31. Kb3 {[%clk 0:01:41]}  c5 {[%clk 0:02:26]} 32. Ka4 {[%clk 0:01:33]}  Kd7 {[%clk 0:02:26]} 33. Ka5 {[%clk 0:01:31]}  Kc6 {[%clk 0:02:27]} 34. b3 {[%clk 0:01:28]}  h6 {[%clk 0:02:24]} 35. Bb1 {[%clk 0:01:27]}  Nf7 {[%clk 0:02:14]} 36. Bd3 {[%clk 0:01:25]}  Nd8 {[%clk 0:02:14]} 37. Nd5 {[%clk 0:01:22]}  Bxd5 {[%clk 0:02:11]} 38. exd5+ {[%clk 0:01:18]}  Kd7 {[%clk 0:02:08]} 39. Bxg6 {[%clk 0:01:19]}  Kd6 {[%clk 0:02:00]} 40. Kb6 {[%clk 0:01:18]}  Kd7 {[%clk 0:01:59]} 41. Kxc5 {[%clk 0:01:16]}  Nb7+ {[%clk 0:01:59]} 42. Kxb4 {[%clk 0:01:16]}  Kd6 {[%clk 0:02:00]} 43. Bf5 {[%clk 0:01:14]}  Kc7 {[%clk 0:01:57]} 44. c5 {[%clk 0:01:13]}  Nd8 {[%clk 0:01:56]} 45. d6+ {[%clk 0:01:13]}  Kc6 {[%clk 0:01:56]} 46. Be4+ {[%clk 0:01:13]}  Kd7 {[%clk 0:01:56]} 47. Bd5 {[%clk 0:01:14]}  f5 {[%clk 0:01:53]} 48. Kc4 {[%clk 0:01:13]}  Nc6 {[%clk 0:01:52]} 49. Bxc6+ {[%clk 0:01:13]}  Kxc6 {[%clk 0:01:51]} 50. b4 {[%clk 0:01:14]} 1-0


[Site "https://www.chess.com"]

[Event "Titled Tuesday Blitz August 15 Late 2023"]
[White "Kujawski, Adam"]
[Black "Graif, William"]
[WhiteFideId "1100920"]
[BlackFideId "2609835"]
[WhiteElo "2315"]
[BlackElo "2554"]
[Result "1-0"]
[Round "5"]
[TimeControl "180+1"]
[Date "2023.08.15"]
[WhiteClock "0:00:17"]
[BlackClock "0:00:37"]
[Board "125"]

1. d4 {[%clk 0:02:53]}  Nf6 {[%clk 0:02:57]} 2. Bf4 {[%clk 0:02:53]}  c5 {[%clk 0:02:57]} 3. d5 {[%clk 0:02:52]}  b5 {[%clk 0:02:53]} 4. f3 {[%clk 0:02:46]}  g6 {[%clk 0:02:50]} 5. e4 {[%clk 0:02:45]}  Bg7 {[%clk 0:02:49]} 6. a4 {[%clk 0:02:26]}  b4 {[%clk 0:02:27]} 7. Nd2 {[%clk 0:02:23]}  Nh5 {[%clk 0:02:22]} 8. Be3 {[%clk 0:02:16]}  Bxb2 {[%clk 0:01:43]} 9. g4 {[%clk 0:01:58]}  Nf6 {[%clk 0:01:26]} 10. Ne2 {[%clk 0:01:56]}  d6 {[%clk 0:00:58]} 11. Nc4 {[%clk 0:01:52]}  Bxa1 {[%clk 0:00:57]} 12. Qxa1 {[%clk 0:01:53]}  Rg8 {[%clk 0:00:44]} 13. Ng3 {[%clk 0:01:50]}  Nbd7 {[%clk 0:00:38]} 14. g5 {[%clk 0:01:22]}  Nh5 {[%clk 0:00:37]} 15. Nxh5 {[%clk 0:01:22]}  gxh5 {[%clk 0:00:38]} 16. Be2 {[%clk 0:01:09]}  Nb6 {[%clk 0:00:34]} 17. Na5 {[%clk 0:00:58]}  Bd7 {[%clk 0:00:29]} 18. Nc6 {[%clk 0:00:34]}  Bxc6 {[%clk 0:00:22]} 19. dxc6 {[%clk 0:00:35]}  Qc7 {[%clk 0:00:20]} 20. O-O {[%clk 0:00:23]}  a5 {[%clk 0:00:18]} 21. Bb5 {[%clk 0:00:19]}  O-O-O {[%clk 0:00:18]} 22. c3 {[%clk 0:00:15]}  f6 {[%clk 0:00:16]} 23. cxb4 {[%clk 0:00:15]}  cxb4 {[%clk 0:00:15]} 24. Qd4 {[%clk 0:00:13]}  Na8 {[%clk 0:00:13]} 25. Rb1 {[%clk 0:00:06]}  e5 {[%clk 0:00:13]} 26. Ba6+ {[%clk 0:00:04]}  Kb8 {[%clk 0:00:13]} 27. Rxb4+ {[%clk 0:00:05]}  axb4 {[%clk 0:00:11]} 28. Qxb4+ {[%clk 0:00:05]}  Nb6 {[%clk 0:00:11]} 29. Bxb6 {[%clk 0:00:05]}  Rxg5+ {[%clk 0:00:11]} 30. Kf2 {[%clk 0:00:04]}  Qxc6 {[%clk 0:00:11]} 31. Bxd8+ {[%clk 0:00:02]}  Ka7 {[%clk 0:00:11]} 32. Be2 {[%clk 0:00:01]}  Qc5+ {[%clk 0:00:10]} 33. Qxc5+ {[%clk 0:00:01]}  dxc5 {[%clk 0:00:11]} 34. Bxf6 {[%clk 0:00:01]}  Rg6 {[%clk 0:00:12]} 35. Bxe5 {[%clk 0:00:01]}  Re6 {[%clk 0:00:12]} 36. Bf4 {[%clk 0:00:02]}  Rc6 {[%clk 0:00:13]} 37. Ke3 {[%clk 0:00:02]}  c4 {[%clk 0:00:14]} 38. Kd2 {[%clk 0:00:01]}  c3+ {[%clk 0:00:15]} 39. Kc2 {[%clk 0:00:02]}  Rb6 {[%clk 0:00:15]} 40. Be3 {[%clk 0:00:02]}  Kb7 {[%clk 0:00:14]} 41. Bxb6 {[%clk 0:00:03]}  Kxb6 {[%clk 0:00:15]} 42. Kxc3 {[%clk 0:00:03]}  Ka5 {[%clk 0:00:16]} 43. Kd4 {[%clk 0:00:03]}  Kxa4 {[%clk 0:00:17]} 44. Ke5 {[%clk 0:00:04]}  Ka5 {[%clk 0:00:18]} 45. Kf4 {[%clk 0:00:05]}  Kb6 {[%clk 0:00:19]} 46. Kg5 {[%clk 0:00:05]}  Kc7 {[%clk 0:00:20]} 47. Kxh5 {[%clk 0:00:06]}  Kd8 {[%clk 0:00:21]} 48. Kh6 {[%clk 0:00:07]}  Ke8 {[%clk 0:00:22]} 49. Kxh7 {[%clk 0:00:07]}  Ke7 {[%clk 0:00:23]} 50. f4 {[%clk 0:00:08]}  Ke6 {[%clk 0:00:23]} 51. Kh6 {[%clk 0:00:08]}  Kf6 {[%clk 0:00:24]} 52. Kh5 {[%clk 0:00:09]}  Ke6 {[%clk 0:00:25]} 53. Kg4 {[%clk 0:00:10]}  Ke7 {[%clk 0:00:26]} 54. h4 {[%clk 0:00:10]}  Kf7 {[%clk 0:00:27]} 55. h5 {[%clk 0:00:11]}  Ke7 {[%clk 0:00:27]} 56. e5 {[%clk 0:00:12]}  Kf7 {[%clk 0:00:28]} 57. Bd3 {[%clk 0:00:13]}  Kg8 {[%clk 0:00:29]} 58. Kg5 {[%clk 0:00:13]}  Kg7 {[%clk 0:00:30]} 59. f5 {[%clk 0:00:14]}  Kg8 {[%clk 0:00:31]} 60. f6 {[%clk 0:00:15]}  Kf8 {[%clk 0:00:32]} 61. h6 {[%clk 0:00:15]}  Kg8 {[%clk 0:00:32]} 62. Kf5 {[%clk 0:00:15]}  Kf8 {[%clk 0:00:33]} 63. e6 {[%clk 0:00:16]}  Kg8 {[%clk 0:00:33]} 64. Ke5 {[%clk 0:00:17]}  Kh8 {[%clk 0:00:34]} 65. Kd6 {[%clk 0:00:18]}  Kg8 {[%clk 0:00:35]} 66. Ke7 {[%clk 0:00:17]}  Kh8 {[%clk 0:00:36]} 67. Ke8 {[%clk 0:00:17]}  Kg8 {[%clk 0:00:36]} 68. f7+ {[%clk 0:00:17]}  Kh8 {[%clk 0:00:37]} 69. f8=Q# {[%clk 0:00:17]} 1-0


[Site "https://www.chess.com"]

[Event "Titled Tuesday Blitz August 15 Late 2023"]
[White "Gasparyan, David"]
[Black "Garmendiarov"]
[WhiteFideId "13311980"]
[WhiteElo "2543"]
[BlackElo "2304"]
[Result "1-0"]
[Round "5"]
[TimeControl "180+1"]
[Date "2023.08.15"]
[WhiteClock "0:00:12"]
[BlackClock "0:00:07"]
[Board "126"]

1. d4 {[%clk 0:02:59]}  Nf6 {[%clk 0:02:59]} 2. c4 {[%clk 0:02:58]}  g6 {[%clk 0:03:00]} 3. g3 {[%clk 0:02:57]}  Bg7 {[%clk 0:02:59]} 4. Bg2 {[%clk 0:02:58]}  c6 {[%clk 0:02:59]} 5. Nc3 {[%clk 0:02:56]}  d5 {[%clk 0:03:00]} 6. Qa4 {[%clk 0:02:54]}  O-O {[%clk 0:02:56]} 7. Nf3 {[%clk 0:02:53]}  dxc4 {[%clk 0:02:49]} 8. Qxc4 {[%clk 0:02:52]}  Nbd7 {[%clk 0:02:48]} 9. O-O {[%clk 0:02:51]}  Nb6 {[%clk 0:02:29]} 10. Qd3 {[%clk 0:02:49]}  Nfd5 {[%clk 0:02:21]} 11. Nxd5 {[%clk 0:02:42]}  cxd5 {[%clk 0:02:18]} 12. Ne5 {[%clk 0:02:20]}  Bf5 {[%clk 0:02:07]} 13. Qb3 {[%clk 0:02:15]}  Rc8 {[%clk 0:01:56]} 14. Bf4 {[%clk 0:01:59]}  g5 {[%clk 0:01:07]} 15. Bd2 {[%clk 0:01:42]}  f6 {[%clk 0:01:01]} 16. Nd3 {[%clk 0:01:30]}  Nc4 {[%clk 0:01:00]} 17. Bc3 {[%clk 0:01:28]}  b6 {[%clk 0:00:43]} 18. Nb4 {[%clk 0:01:27]}  e6 {[%clk 0:00:39]} 19. Rac1 {[%clk 0:01:16]}  Qd7 {[%clk 0:00:33]} 20. Rfe1 {[%clk 0:01:07]}  a5 {[%clk 0:00:28]} 21. Nd3 {[%clk 0:01:01]}  a4 {[%clk 0:00:25]} 22. Qd1 {[%clk 0:00:54]}  Rfe8 {[%clk 0:00:18]} 23. e4 {[%clk 0:00:48]}  Bxe4 {[%clk 0:00:18]} 24. Bxe4 {[%clk 0:00:49]}  dxe4 {[%clk 0:00:18]} 25. Rxe4 {[%clk 0:00:50]}  f5 {[%clk 0:00:17]} 26. Re1 {[%clk 0:00:46]}  Bxd4 {[%clk 0:00:16]} 27. Qh5 {[%clk 0:00:38]}  Bxc3 {[%clk 0:00:14]} 28. Rxc3 {[%clk 0:00:36]}  g4 {[%clk 0:00:10]} 29. Rec1 {[%clk 0:00:23]}  Nd6 {[%clk 0:00:08]} 30. Ne5 {[%clk 0:00:20]}  Qg7 {[%clk 0:00:08]} 31. Re1 {[%clk 0:00:14]}  Rxc3 {[%clk 0:00:08]} 32. bxc3 {[%clk 0:00:15]}  Ne4 {[%clk 0:00:08]} 33. Qxe8+ {[%clk 0:00:14]}  Qf8 {[%clk 0:00:07]} 34. Qxe6+ {[%clk 0:00:14]}  Kh8 {[%clk 0:00:07]} 35. Nd7 {[%clk 0:00:12]}  Qg7 {[%clk 0:00:05]} 36. Qe8+ {[%clk 0:00:10]}  Qg8 {[%clk 0:00:06]} 37. Qe5+ {[%clk 0:00:11]}  Qg7 {[%clk 0:00:06]} 38. Qxg7+ {[%clk 0:00:11]}  Kxg7 {[%clk 0:00:07]} 39. Rxe4 {[%clk 0:00:10]}  fxe4 {[%clk 0:00:07]} 40. Nxb6 {[%clk 0:00:11]}  Kf6 {[%clk 0:00:07]} 41. Nxa4 {[%clk 0:00:11]}  Ke5 {[%clk 0:00:08]} 42. Nb2 {[%clk 0:00:11]}  Kd5 {[%clk 0:00:09]} 43. Kf1 {[%clk 0:00:12]}  e3 {[%clk 0:00:07]} 44. fxe3 {[%clk 0:00:12]} 1-0


[Site "https://www.chess.com"]

[Event "Titled Tuesday Blitz August 15 Late 2023"]
[White "Musovic, Armin"]
[Black "Dr_Pepper18"]
[WhiteFideId "939935"]
[WhiteElo "2539"]
[BlackElo "2301"]
[Result "0-1"]
[Round "5"]
[TimeControl "180+1"]
[Date "2023.08.15"]
[WhiteClock "0:00:18"]
[BlackClock "0:00:20"]
[Board "127"]

1. a3 {[%clk 0:03:00]}  Nf6 {[%clk 0:02:56]} 2. Nc3 {[%clk 0:02:58]}  g6 {[%clk 0:02:55]} 3. e4 {[%clk 0:02:59]}  d6 {[%clk 0:02:55]} 4. d4 {[%clk 0:02:59]}  Bg7 {[%clk 0:02:55]} 5. Bg5 {[%clk 0:02:59]}  O-O {[%clk 0:02:55]} 6. f4 {[%clk 0:03:00]}  Nfd7 {[%clk 0:02:01]} 7. Bh4 {[%clk 0:02:52]}  c6 {[%clk 0:01:52]} 8. Nf3 {[%clk 0:02:51]}  Re8 {[%clk 0:01:33]} 9. Bc4 {[%clk 0:02:43]}  b5 {[%clk 0:01:32]} 10. Ba2 {[%clk 0:02:42]}  Qb6 {[%clk 0:01:27]} 11. Bf2 {[%clk 0:02:32]}  Bb7 {[%clk 0:01:14]} 12. O-O {[%clk 0:02:21]}  a6 {[%clk 0:01:05]} 13. e5 {[%clk 0:02:14]}  d5 {[%clk 0:01:02]} 14. f5 {[%clk 0:02:12]}  Nf8 {[%clk 0:00:53]} 15. fxg6 {[%clk 0:02:07]}  fxg6 {[%clk 0:00:45]} 16. Ne2 {[%clk 0:01:55]}  e6 {[%clk 0:00:40]} 17. c3 {[%clk 0:01:49]}  Nbd7 {[%clk 0:00:39]} 18. h4 {[%clk 0:01:38]}  c5 {[%clk 0:00:39]} 19. h5 {[%clk 0:01:31]}  cxd4 {[%clk 0:00:38]} 20. cxd4 {[%clk 0:01:28]}  Rac8 {[%clk 0:00:38]} 21. Qd2 {[%clk 0:01:23]}  gxh5 {[%clk 0:00:22]} 22. Qg5 {[%clk 0:01:17]}  Ng6 {[%clk 0:00:20]} 23. Qxh5 {[%clk 0:01:15]}  Ndf8 {[%clk 0:00:20]} 24. Ng5 {[%clk 0:01:12]}  h6 {[%clk 0:00:18]} 25. Nh3 {[%clk 0:01:11]}  Rc2 {[%clk 0:00:17]} 26. Nef4 {[%clk 0:01:10]}  Nxf4 {[%clk 0:00:15]} 27. Nxf4 {[%clk 0:01:11]}  Rec8 {[%clk 0:00:16]} 28. Bb1 {[%clk 0:00:51]}  Rxf2 {[%clk 0:00:16]} 29. Ng6 {[%clk 0:00:52]}  Qxd4 {[%clk 0:00:14]} 30. Ne7+ {[%clk 0:00:24]}  Kh8 {[%clk 0:00:14]} 31. Rxf2 {[%clk 0:00:20]}  Rc1+ {[%clk 0:00:14]} 32. Kh2 {[%clk 0:00:21]}  Qxf2 {[%clk 0:00:14]} 33. Ng6+ {[%clk 0:00:11]}  Nxg6 {[%clk 0:00:14]} 34. Bxg6 {[%clk 0:00:11]}  Qf4+ {[%clk 0:00:13]} 35. g3 {[%clk 0:00:10]}  Qf2+ {[%clk 0:00:13]} 36. Kh3 {[%clk 0:00:11]}  Rxa1 {[%clk 0:00:13]} 37. Bb1 {[%clk 0:00:12]}  Rxb1 {[%clk 0:00:12]} 38. Qe8+ {[%clk 0:00:13]}  Qf8 {[%clk 0:00:12]} 39. Qg6 {[%clk 0:00:14]}  d4 {[%clk 0:00:13]} 40. Qxb1 {[%clk 0:00:13]}  Qf5+ {[%clk 0:00:13]} 41. Qxf5 {[%clk 0:00:13]}  exf5 {[%clk 0:00:13]} 42. e6 {[%clk 0:00:13]}  Bc6 {[%clk 0:00:14]} 43. g4 {[%clk 0:00:13]}  Bf6 {[%clk 0:00:15]} 44. gxf5 {[%clk 0:00:14]}  Kg7 {[%clk 0:00:15]} 45. e7 {[%clk 0:00:14]}  Bxe7 {[%clk 0:00:15]} 46. b4 {[%clk 0:00:15]}  Kf6 {[%clk 0:00:16]} 47. Kg4 {[%clk 0:00:16]}  Bd5 {[%clk 0:00:16]} 48. Kh5 {[%clk 0:00:16]}  Bc4 {[%clk 0:00:17]} 49. a4 {[%clk 0:00:17]}  d3 {[%clk 0:00:18]} 50. axb5 {[%clk 0:00:17]}  axb5 {[%clk 0:00:18]} 51. Kxh6 {[%clk 0:00:17]}  d2 {[%clk 0:00:19]} 52. Kh7 {[%clk 0:00:17]}  d1=Q {[%clk 0:00:20]} 53. Kh8 {[%clk 0:00:18]}  Qh5# {[%clk 0:00:20]} 0-1


[Site "https://www.chess.com"]

[Event "Titled Tuesday Blitz August 15 Late 2023"]
[White "Vaglio Munoz, Jaime"]
[Black "Villiers, Thomas"]
[WhiteFideId "6500145"]
[BlackFideId "427209"]
[WhiteElo "2245"]
[BlackElo "2422"]
[Result "0-1"]
[Round "5"]
[TimeControl "180+1"]
[Date "2023.08.15"]
[WhiteClock "0:00:00"]
[BlackClock "0:00:22"]
[Board "134"]

1. Nf3 {[%clk 0:02:42]}  g6 {[%clk 0:03:00]} 2. d4 {[%clk 0:02:41]}  Bg7 {[%clk 0:03:00]} 3. b3 {[%clk 0:02:41]}  c5 {[%clk 0:03:00]} 4. Bb2 {[%clk 0:02:41]}  Nc6 {[%clk 0:02:58]} 5. e3 {[%clk 0:02:41]}  cxd4 {[%clk 0:02:58]} 6. Nxd4 {[%clk 0:02:40]}  Nf6 {[%clk 0:02:57]} 7. Nxc6 {[%clk 0:02:39]}  bxc6 {[%clk 0:02:56]} 8. c4 {[%clk 0:02:34]}  O-O {[%clk 0:02:55]} 9. Be2 {[%clk 0:02:34]}  d5 {[%clk 0:02:54]} 10. O-O {[%clk 0:02:33]}  Qc7 {[%clk 0:02:51]} 11. Nd2 {[%clk 0:02:31]}  Ng4 {[%clk 0:02:48]} 12. Bxg4 {[%clk 0:02:20]}  Bxb2 {[%clk 0:02:47]} 13. Rb1 {[%clk 0:02:19]}  Bg7 {[%clk 0:02:46]} 14. Bf3 {[%clk 0:02:11]}  Ba6 {[%clk 0:02:42]} 15. Rc1 {[%clk 0:02:10]}  Qa5 {[%clk 0:02:35]} 16. Rc2 {[%clk 0:02:07]}  e5 {[%clk 0:02:33]} 17. e4 {[%clk 0:02:00]}  Rad8 {[%clk 0:02:28]} 18. Re1 {[%clk 0:01:55]}  dxc4 {[%clk 0:02:27]} 19. bxc4 {[%clk 0:01:53]}  Rd4 {[%clk 0:02:24]} 20. Qe2 {[%clk 0:01:48]}  Qa4 {[%clk 0:02:19]} 21. Rec1 {[%clk 0:01:41]}  Rfd8 {[%clk 0:02:16]} 22. Nb3 {[%clk 0:01:40]}  Bh6 {[%clk 0:02:02]} 23. Nxd4 {[%clk 0:01:27]}  Bxc1 {[%clk 0:01:46]} 24. Nb3 {[%clk 0:01:22]}  Ba3 {[%clk 0:01:39]} 25. g3 {[%clk 0:01:22]}  Be7 {[%clk 0:01:33]} 26. Kg2 {[%clk 0:01:22]}  Qb4 {[%clk 0:01:26]} 27. h4 {[%clk 0:01:21]}  Bc8 {[%clk 0:01:23]} 28. Bg4 {[%clk 0:01:16]}  Bb7 {[%clk 0:01:17]} 29. h5 {[%clk 0:01:10]}  c5 {[%clk 0:01:17]} 30. Bf3 {[%clk 0:00:54]}  a5 {[%clk 0:01:15]} 31. Nc1 {[%clk 0:00:44]}  Qa3 {[%clk 0:00:58]} 32. Rb2 {[%clk 0:00:36]}  Ba6 {[%clk 0:00:54]} 33. Rc2 {[%clk 0:00:26]}  Bg5 {[%clk 0:00:48]} 34. Nb3 {[%clk 0:00:18]}  a4 {[%clk 0:00:49]} 35. Na1 {[%clk 0:00:18]}  Qb4 {[%clk 0:00:44]} 36. Bg4 {[%clk 0:00:14]}  Qb1 {[%clk 0:00:43]} 37. Qf1 {[%clk 0:00:11]}  Qxf1+ {[%clk 0:00:38]} 38. Kxf1 {[%clk 0:00:10]}  Rd4 {[%clk 0:00:37]} 39. Be2 {[%clk 0:00:08]}  Rxe4 {[%clk 0:00:37]} 40. f3 {[%clk 0:00:08]}  Rd4 {[%clk 0:00:34]} 41. Kf2 {[%clk 0:00:08]}  Rd2 {[%clk 0:00:33]} 42. Rxd2 {[%clk 0:00:08]}  Bxd2 {[%clk 0:00:34]} 43. Nc2 {[%clk 0:00:08]}  Kg7 {[%clk 0:00:30]} 44. Bd3 {[%clk 0:00:08]}  Kf6 {[%clk 0:00:29]} 45. Ke2 {[%clk 0:00:08]}  Ba5 {[%clk 0:00:29]} 46. f4 {[%clk 0:00:07]}  exf4 {[%clk 0:00:29]} 47. gxf4 {[%clk 0:00:08]}  Bc7 {[%clk 0:00:29]} 48. hxg6 {[%clk 0:00:08]}  fxg6 {[%clk 0:00:29]} 49. Kf3 {[%clk 0:00:08]}  Bb7+ {[%clk 0:00:29]} 50. Ke3 {[%clk 0:00:08]}  h5 {[%clk 0:00:29]} 51. Na3 {[%clk 0:00:07]}  h4 {[%clk 0:00:29]} 52. Bf1 {[%clk 0:00:06]}  g5 {[%clk 0:00:22]} 53. fxg5+ {[%clk 0:00:03]}  Kxg5 {[%clk 0:00:23]} 54. Nb5 {[%clk 0:00:00]}  Be5 {[%clk 0:00:22]} 0-1


[Site "https://www.chess.com"]

[Event "Titled Tuesday Blitz August 15 Late 2023"]
[White "Osmonbekov, Talaibek"]
[Black "FuenfgegenWilly"]
[WhiteFideId "2017253"]
[WhiteElo "2207"]
[BlackElo "2413"]
[Result "0-1"]
[Round "5"]
[TimeControl "180+1"]
[Date "2023.08.15"]
[WhiteClock "0:00:00"]
[BlackClock "0:01:49"]
[Board "137"]

1. d4 {[%clk 0:03:00]}  f5 {[%clk 0:02:59]} 2. e4 {[%clk 0:02:58]}  fxe4 {[%clk 0:02:58]} 3. Nc3 {[%clk 0:02:59]}  Nf6 {[%clk 0:02:59]} 4. Bg5 {[%clk 0:02:59]}  g6 {[%clk 0:02:52]} 5. f3 {[%clk 0:02:48]}  d5 {[%clk 0:02:52]} 6. Qd2 {[%clk 0:02:47]}  Bg7 {[%clk 0:02:40]} 7. O-O-O {[%clk 0:02:47]}  c6 {[%clk 0:02:40]} 8. h4 {[%clk 0:02:33]}  Bf5 {[%clk 0:02:40]} 9. g4 {[%clk 0:02:26]}  Be6 {[%clk 0:02:37]} 10. Bxf6 {[%clk 0:02:19]}  Bxf6 {[%clk 0:02:23]} 11. g5 {[%clk 0:02:18]}  Bg7 {[%clk 0:02:21]} 12. fxe4 {[%clk 0:02:18]}  dxe4 {[%clk 0:02:17]} 13. Nxe4 {[%clk 0:02:17]}  Qd5 {[%clk 0:02:12]} 14. Nc3 {[%clk 0:01:35]}  Qxh1 {[%clk 0:02:06]} 15. Bg2 {[%clk 0:01:32]}  Qxh4 {[%clk 0:02:06]} 16. Re1 {[%clk 0:01:13]}  Bf5 {[%clk 0:01:56]} 17. Nf3 {[%clk 0:00:33]}  Qg3 {[%clk 0:01:55]} 18. Ne4 {[%clk 0:00:12]}  Bxe4 {[%clk 0:01:53]} 19. Rxe4 {[%clk 0:00:12]}  O-O {[%clk 0:01:53]} 20. Rxe7 {[%clk 0:00:07]}  Na6 {[%clk 0:01:49]} 21. Rxb7 {[%clk 0:00:06]}  Rxf3 {[%clk 0:01:48]} 22. Bxf3 {[%clk 0:00:00]}  Qxf3 {[%clk 0:01:49]} 0-1


[Site "https://www.chess.com"]

[Event "Titled Tuesday Blitz August 15 Late 2023"]
[White "Quispe Santacruz, Javier"]
[Black "Balla, Tamas-Kristof"]
[WhiteFideId "3800920"]
[BlackFideId "1208497"]
[WhiteElo "2164"]
[BlackElo "2397"]
[Result "0-1"]
[Round "5"]
[TimeControl "180+1"]
[Date "2023.08.15"]
[WhiteClock "0:01:29"]
[BlackClock "0:01:22"]
[Board "140"]

1. d4 {[%clk 0:02:52]}  d5 {[%clk 0:02:59]} 2. c4 {[%clk 0:02:52]}  e6 {[%clk 0:02:59]} 3. Nc3 {[%clk 0:02:51]}  c5 {[%clk 0:03:00]} 4. cxd5 {[%clk 0:02:51]}  exd5 {[%clk 0:03:00]} 5. Nf3 {[%clk 0:02:51]}  Nc6 {[%clk 0:03:00]} 6. g3 {[%clk 0:02:52]}  Nf6 {[%clk 0:03:00]} 7. Bg2 {[%clk 0:02:52]}  cxd4 {[%clk 0:03:01]} 8. Nxd4 {[%clk 0:02:52]}  Bc5 {[%clk 0:03:01]} 9. Nb3 {[%clk 0:02:49]}  Bb6 {[%clk 0:03:02]} 10. O-O {[%clk 0:02:47]}  d4 {[%clk 0:03:01]} 11. Ne4 {[%clk 0:02:44]}  Nxe4 {[%clk 0:03:00]} 12. Bxe4 {[%clk 0:02:43]}  Bh3 {[%clk 0:03:00]} 13. Bg2 {[%clk 0:02:40]}  Bxg2 {[%clk 0:02:59]} 14. Kxg2 {[%clk 0:02:41]}  O-O {[%clk 0:02:54]} 15. a4 {[%clk 0:02:40]}  Qd5+ {[%clk 0:02:48]} 16. Kg1 {[%clk 0:02:33]}  Rad8 {[%clk 0:02:42]} 17. Bf4 {[%clk 0:02:31]}  Rfe8 {[%clk 0:02:35]} 18. Rc1 {[%clk 0:02:22]}  h6 {[%clk 0:02:30]} 19. h4 {[%clk 0:02:22]}  Re6 {[%clk 0:01:34]} 20. Re1 {[%clk 0:02:10]}  g5 {[%clk 0:01:22]} 21. hxg5 {[%clk 0:02:09]}  hxg5 {[%clk 0:01:22]} 22. Bd2 {[%clk 0:02:09]}  Rh6 {[%clk 0:01:23]} 23. e4 {[%clk 0:01:29]}  dxe3 {[%clk 0:01:22]} 0-1


[Site "https://www.chess.com"]